bitfinex/quotes_ETHUSD_20250413
["timestamp","ask_amount","ask_price","bid_price","bid_amount"]
[1744576631896,0.02,1601.4,1601.2,6.24515]
[1744576632415,0.02,1601.4,1601.3,6.24492]
[1744576632615,0.02,1601.4,1600.9,6.24635]
[1744576632795,0.8277,1601.3,1600.8,6.24674]
[1744576632995,0.02936941,1601.2,1600.7,6.24721]
[1744576633215,10.22683635,1601.2,1600.7,6.24721]
[1744576633738,10.22695635,1601.2,1600.7,6.24712]
[1744576634132,10.22695635,1601.2,1600.6,6.2476]
[1744576634364,6.24571,1601.1,1600.6,12.49503]
[1744576634659,0.02936941,1601.0,1600.7,12.49435]
[1744576634847,0.02936941,1601.1,1600.7,6.24709]
[1744576635054,6.17,1601.3,1601.0,6.24609]
[1744576635255,0.02,1601.4,1600.7,9.4116]
[1744576635416,0.04936941,1601.4,1601.2,6.24506]
[1744576635623,0.02,1601.4,1601.3,6.24492]
[1744576636365,8.66,1602.0,1601.3,6.24492]
[1744576636366,0.8277,1602.0,1601.8,6.24284]
[1744576636531,0.8277,1602.0,1601.8,6.24282]
[1744576636734,0.8277,1602.0,1601.6,6.24363]
[1744576636975,8.68836941,1601.9,1601.3,6.2449]
[1744576637267,0.86883694,1601.8,1601.2,6.24531]
[1744576637421,0.02936941,1601.7,1601.6,6.2436]
[1744576637624,0.8277,1601.7,1601.3,6.24467]
[1744576637999,0.8277,1601.7,1601.2,6.24517]
[1744576638000,0.02936941,1601.6,1601.2,6.24517]
[1744576638324,0.02936941,1601.6,1601.3,6.24483]
[1744576638762,0.02936941,1601.6,1601.3,12.48955]
[1744576639073,0.02936941,1601.6,1600.9,6.24647]
[1744576639074,6.24535,1601.2,1600.9,6.24647]
[1744576639377,0.8294,1601.4,1601.0,6.24609]
[1744576639378,0.02936941,1601.1,1601.0,6.24609]
[1744576639665,6.17,1601.3,1601.1,6.24553]
[1744576640151,6.17,1601.3,1601.2,6.24531]
[1744576640527,6.17,1601.3,1601.0,6.24602]
[1744576640717,6.17,1601.3,1601.0,12.49197]
[1744576640934,6.17,1601.3,1600.9,6.24646]
[1744576641133,7.73574,1601.3,1600.8,7.00405]
[1744576641342,7.73574,1601.3,1600.8,13.25073]
[1744576641538,0.02936941,1601.2,1600.8,13.25056]
[1744576641773,0.02936941,1601.2,1600.8,6.24668]
[1744576642264,6.24583,1601.1,1600.6,7.00474]
[1744576642465,0.02936941,1601.1,1600.7,6.24722]
[1744576642662,0.02936941,1601.1,1600.6,7.06711508]
[1744576642885,7.76510941,1601.3,1600.8,6.24655]
[1744576643083,7.76510941,1601.3,1600.9,6.24641]
[1744576643292,3.0,1601.2,1600.9,6.24641]
[1744576643637,6.17,1601.3,1601.1,6.24569]
[1744576644088,6.24381,1601.6,1601.2,6.24511]
[1744576644284,3.0,1601.5,1601.2,6.24511]
[1744576644666,6.27317941,1601.6,1601.2,6.24511]
[1744576644667,0.02936941,1601.6,1601.3,6.2448]
[1744576645082,6.24377,1601.6,1601.3,6.2448]
[1744576645514,6.24489,1601.4,1600.9,6.2462]
[1744576645648,6.27425941,1601.4,1601.0,12.49186]
[1744576645843,3.0,1601.5,1600.8,9.4425]
[1744576646188,6.245,1601.3,1600.9,12.49272]
[1744576646341,6.245,1601.3,1600.9,6.24636]
[1744576646659,6.245,1601.3,1600.9,12.49272]
[1744576647245,6.27480941,1601.2,1600.8,14.90475]
[1744576647488,6.24588,1601.1,1600.8,8.658]
[1744576647692,6.24612,1601.0,1600.8,8.658]
[1744576647852,6.24742,1600.7,1600.3,7.03308]
[1744576648053,6.2482,1600.5,1600.1,6.24944]
[1744576648304,12.49654,1600.5,1600.1,6.24944]
[1744576648584,0.8277,1600.8,1600.5,6.24777]
[1744576648889,0.46448573,1601.0,1600.7,6.24697]
[1744576648890,3.0,1601.0,1600.7,6.24697]
[1744576649049,9.24614,1601.0,1600.6,6.24758]
[1744576649389,9.24614,1601.0,1600.5,0.8175]
[1744576649390,6.24703,1600.8,1600.4,6.24825]
[1744576649574,6.27585941,1600.9,1600.5,6.24784]
[1744576649744,12.52255941,1600.9,1600.5,6.24784]
[1744576650583,12.52257941,1600.9,1600.5,6.24784]
[1744576651587,7.00146,1600.4,1599.5,1.250428]
[1744576651786,6.25217,1599.5,1599.1,7.09086]
[1744576652005,6.25253,1599.4,1599.1,0.02]
[1744576652186,6.25312,1599.2,1599.1,0.02]
[1744576652499,6.28148941,1599.5,1599.1,0.02]
[1744576652672,6.25273,1599.3,1599.1,0.02]
[1744576653216,6.25262,1599.4,1599.1,0.02]
[1744576653375,12.50523,1599.4,1599.1,0.02]
[1744576653707,6.25261,1599.4,1599.1,0.02]
[1744576653914,12.53463941,1599.4,1599.1,0.02]
[1744576654279,12.53458941,1599.4,1599.1,0.02]
[1744576654495,6.28197941,1599.4,1599.1,0.02]
[1744576654670,6.25261,1599.4,1599.1,0.02]
[1744576654869,6.25259,1599.4,1599.1,0.02]
[1744576655107,6.71238853,1599.6,1599.2,6.25293]
[1744576655108,3.0,1599.6,1599.2,6.25293]
[1744576655398,12.5035,1599.6,1599.2,6.25293]
[1744576655603,6.2517,1599.6,1599.2,6.25293]
[1744576655794,6.2517,1599.6,1599.3,0.06252006]
[1744576655968,12.50354,1599.6,1599.2,6.25293]
[1744576656307,6.2517,1599.6,1599.2,6.25293]
[1744576657609,12.50349,1599.6,1599.2,6.25293]
[1744576657983,6.2517,1599.6,1599.2,12.50588]
[1744576658666,6.25209,1599.5,1599.1,6.900729]
[1744576659417,6.28092941,1599.6,1599.2,6.25297]
[1744576659780,6.28092941,1599.6,1599.2,12.50588]
[1744576659986,12.53269941,1599.6,1599.2,6.25291]
[1744576660376,6.25215,1599.5,1599.1,13.154169]
[1744576661013,6.25215,1599.5,1599.2,6.25308]
[1744576661175,6.25161,1599.6,1599.2,12.50616]
[1744576661515,6.25177,1599.6,1599.2,7.5683129]
[1744576661817,6.25241,1599.4,1599.1,6.900739]
[1744576662374,6.25211,1599.5,1599.1,13.154029]
[1744576662610,6.25211,1599.5,1599.2,6.25309]
[1744576662775,6.25211,1599.5,1599.1,6.900689]
[1744576663596,12.50428,1599.5,1599.1,13.154019]
[1744576663795,12.50431,1599.5,1599.1,6.900689]
[1744576664019,6.25311,1599.3,1599.1,0.02]
[1744576664218,6.28248941,1599.2,1599.1,0.02]
[1744576665608,10.60268941,1599.2,1599.1,0.02]
[1744576666105,16.77268941,1599.2,1599.1,1e-05]
[1744576666317,16.77268941,1599.2,1598.4,0.005]
[1744576666318,7.02606,1598.5,1598.4,0.005]
[1744576666625,7.05542941,1598.5,1598.4,0.005]
[1744576667509,13.22542941,1598.5,1598.4,0.005]
[1744576667727,13.19606,1598.5,1598.4,0.005]
[1744576671031,14.00023015,1598.5,1598.4,0.005]
[1744576671940,17.00023015,1598.5,1598.4,0.005]
[1744576672140,6.80703,1598.2,1598.1,0.025]
[1744576672293,9.25743,1598.1,1597.5,6.32224391]
[1744576672495,7.04887,1597.8,1597.1,0.025]
[1744576672698,24.12335941,1597.7,1597.1,0.025]
[1744576673005,24.09399,1597.7,1597.2,6.2608]
[1744576673421,21.09399,1597.7,1597.3,6.2602]
[1744576673741,21.09399,1597.7,1597.1,6.28614]
[1744576673944,21.09399,1597.7,1597.1,12.54727]
[1744576674239,21.56550598,1597.7,1597.2,12.52152]
[1744576674444,24.42694358,1597.7,1597.2,6.26067]
[1744576675433,6.17,1597.7,1597.1,0.025]
[1744576675649,12.45835941,1597.7,1597.2,6.26071]
[1744576676163,12.45835941,1597.7,1597.1,6.28631]
[1744576676317,12.92138088,1597.7,1597.6,0.12957408]
[1744576676861,12.92138088,1597.7,1597.1,6.28613]
[1744576676862,6.26057,1597.3,1597.1,0.025]
[1744576677216,0.83116941,1597.3,1597.1,0.025]
[1744576677450,0.02936941,1597.4,1597.1,6.28615]
[1744576677768,6.28899941,1597.6,1597.2,0.756]
[1744576677918,6.26095,1597.2,1597.1,0.025]
[1744576678123,6.29031941,1597.2,1597.1,0.025]
[1744576678445,7.54542435,1597.2,1597.1,0.025]
[1744576678950,6.26022,1597.4,1597.1,0.025]
[1744576679131,6.26057,1597.3,1597.1,0.025]
[1744576679331,12.52149,1597.3,1597.1,0.025]
[1744576679540,6.26057,1597.3,1597.1,0.025]
[1744576680461,6.28954941,1597.4,1597.1,0.025]
[1744576680652,6.26095,1597.2,1597.1,0.025]
[1744576681028,6.29031941,1597.2,1597.1,0.025]
[1744576681861,7.05921941,1597.2,1597.1,0.025]
[1744576683186,12.99204908,1597.3,1597.1,0.025]
[1744576683340,6.26095,1597.2,1597.1,0.025]
[1744576684358,6.26095,1597.2,1597.1,0.16389412]
[1744576684528,0.7846,1597.0,1596.1,0.02]
[1744576684847,6.26487,1596.2,1596.1,0.02]
[1744576685013,6.34319045,1596.2,1596.1,0.02]
[1744576685213,8.2994345,1596.2,1596.1,0.02]
[1744576685463,6.26487,1596.2,1596.1,0.02]
[1744576685767,6.26644,1595.8,1595.3,0.7569]
[1744576686054,6.26544,1596.1,1595.7,6.27161]
[1744576686267,7.42046648,1596.2,1595.7,6.27161]
[1744576686413,6.63586648,1596.2,1596.0,6.26549]
[1744576686619,6.26422,1596.4,1596.0,6.26545]
[1744576686934,6.2652,1596.2,1595.8,7.02325]
[1744576687225,6.2652,1596.2,1595.7,0.005]
[1744576687226,6.26644,1595.8,1595.7,0.005]
[1744576687425,0.07833977,1596.0,1595.7,0.005]
[1744576687630,6.17,1596.1,1595.9,6.26605]
[1744576687929,6.17,1596.1,1595.9,6.26593]
[1744576688125,1.25023452,1596.4,1596.1,6.26491]
[1744576688443,12.4339,1596.5,1596.1,0.626491]
[1744576688647,6.17,1596.5,1595.9,6.26581]
[1744576688868,6.17,1596.5,1595.7,0.005]
[1744576688869,6.26605,1595.9,1595.7,0.005]
[1744576689158,7.13397002,1595.8,1595.7,0.005]
[1744576689367,16.30397002,1595.8,1595.7,0.005]
[1744576689530,6.26845,1595.3,1595.1,0.02]
[1744576689735,0.0783649,1595.7,1595.4,6.26802]
[1744576689925,21.89504,1595.8,1595.4,6.26786]
[1744576690115,17.028504,1595.8,1595.2,0.8316]
[1744576690319,6.26862,1595.3,1595.1,0.02]
[1744576690520,0.45990277,1595.3,1595.1,0.02]
[1744576690716,0.86756248,1595.6,1595.3,6.26821]
[1744576690916,7.13488248,1595.6,1595.2,6.26865]
[1744576691120,8.83955795,1595.6,1595.3,0.14550337]
[1744576691359,12.9874597,1595.6,1595.1,6.28919]
[1744576691545,6.7198697,1595.6,1595.4,6.26794]
[1744576691854,12.43456,1596.3,1595.8,6.26636]
[1744576692040,6.26561,1596.1,1595.6,6.26688]
[1744576692216,6.97054966,1596.0,1595.9,0.14550337]
[1744576692422,0.47507675,1596.1,1595.9,6.26585]
[1744576692729,0.07831988,1596.2,1595.8,6.26617]
[1744576692947,6.34344988,1596.2,1595.9,0.14550337]
[1744576693145,6.34344988,1596.2,1595.8,6.2663]
[1744576693459,0.07831988,1596.2,1595.9,0.14550337]
[1744576693659,7.59474987,1596.2,1595.9,0.14550337]
[1744576693856,7.59452987,1596.2,1595.9,0.14550337]
[1744576694579,6.26566,1596.0,1595.9,0.14550337]
[1744576694954,0.07833594,1596.0,1595.6,6.26689]
[1744576695195,0.07833594,1596.0,1595.7,6.41219337]
[1744576695357,0.75864806,1596.0,1595.7,6.41219337]
[1744576695551,0.07833594,1596.0,1595.8,6.26619]
[1744576695786,0.07833594,1596.0,1595.8,12.53241]
[1744576695987,0.07833594,1596.0,1595.9,0.14550337]
[1744576696487,0.07833594,1596.0,1595.8,6.26623]
[1744576696662,6.17,1596.3,1595.9,0.20816633]
[1744576696869,7.24423767,1596.3,1595.9,6.41145337]
[1744576697063,21.10534,1596.6,1596.1,6.26507]
[1744576697264,6.34204901,1596.5,1596.0,0.14550337]
[1744576697469,0.07830901,1596.5,1596.1,6.26502]
[1744576697670,0.07830901,1596.5,1596.2,6.26487]
[1744576697866,6.26437,1596.4,1596.2,0.14550337]
[1744576698072,6.96923668,1596.3,1596.2,0.14550337]
[1744576698271,0.07831968,1596.3,1595.9,6.26605]
[1744576698571,7.05383,1596.3,1596.0,0.14550337]
[1744576698785,0.07831488,1596.2,1595.8,12.53288]
[1744576699087,0.5461886,1596.2,1596.1,0.14550337]
[1744576699294,9.26372,1596.5,1595.7,0.8316]
[1744576699463,6.26473,1596.3,1596.1,0.14550337]
[1744576699662,6.34318613,1596.2,1595.8,6.26624]
[1744576699960,6.34318613,1596.2,1595.5,7.09919]
[1744576699961,6.24831613,1596.2,1595.5,7.09919]
[1744576700161,6.26633,1595.9,1595.5,0.8316]
[1744576700361,0.07834049,1595.8,1595.4,12.53572]
[1744576700663,0.07834049,1595.8,1595.4,12.5356]
[1744576700888,6.34483049,1595.8,1595.4,12.5356]
[1744576701087,6.26699,1595.7,1595.3,7.09984]
[1744576701294,0.07834881,1595.6,1595.4,6.26772]
[1744576701595,0.07834881,1595.7,1595.4,6.26772]
[1744576701795,6.34530881,1595.7,1595.2,12.60000905]
[1744576702093,0.07834881,1595.7,1595.3,6.26839]
[1744576702266,6.34520881,1595.7,1595.3,6.26837]
[1744576702787,0.07834881,1595.7,1595.4,6.26778]
[1744576703195,6.26733,1595.6,1595.1,7.12078]
[1744576703383,6.34619463,1595.5,1595.1,6.28918]
[1744576704098,6.26802,1595.4,1595.1,0.02]
[1744576704297,6.26803,1595.4,1595.1,0.02]
[1744576704504,6.2688,1595.2,1595.1,0.02]
[1744576704674,6.27088,1594.7,1594.3,0.7946]
[1744576704876,6.27126,1594.6,1594.3,0.7946]
[1744576705088,6.34965752,1594.6,1594.1,7.08752]
[1744576705402,0.55,1594.0,1593.1,0.02]
[1744576705718,6.27527,1593.6,1593.1,6.2969]
[1744576705899,0.07845379,1593.8,1593.5,6.27529]
[1744576706071,13.74639994,1594.0,1593.5,6.27529]
[1744576706268,1.3109,1593.8,1593.1,0.02]
[1744576706622,0.07846568,1593.7,1593.1,0.02]
[1744576706917,6.27785,1592.9,1592.6,7.91274205]
[1744576707127,9.905635,1592.9,1592.6,7.91274205]
[1744576707310,6.28061,1592.2,1592.1,5.08e-06]
[1744576707504,0.07853067,1592.2,1592.1,5.08e-06]
[1744576707818,9.28377,1591.4,1591.3,14.7044972]
[1744576707970,6.36232628,1591.4,1591.3,14.7044972]
[1744576708171,0.07855628,1591.4,1591.3,14.7044972]
[1744576708368,6.28614,1590.8,1590.7,16.96993627]
[1744576708599,18.86772832,1590.8,1590.7,16.96993627]
[1744576708768,0.46839129,1590.8,1590.7,16.96993627]
[1744576708971,6.71792,1591.1,1590.5,7.75531357]
[1744576708972,6.28579,1590.9,1590.5,7.75531357]
[1744576709171,0.07859065,1591.0,1590.5,7.75531357]
[1744576709616,0.90683035,1591.1,1591.0,6.28535]
[1744576709617,0.07858867,1591.1,1591.0,6.28535]
[1744576709812,0.4738481,1591.6,1591.0,6.28535]
[1744576710113,0.7609,1591.9,1591.4,6.28373]
[1744576710297,0.07854076,1591.9,1591.7,6.28259]
[1744576710492,6.35906774,1592.3,1591.4,0.628373]
[1744576710815,0.55,1591.8,1590.8,7.08074]
[1744576711104,10.60468,1591.6,1591.5,0.14984858]
[1744576711317,3.0,1591.3,1590.8,6.2859]
[1744576711492,54.5927,1591.6,1590.5,14.04258357]
[1744576711684,0.7717,1591.6,1591.3,6.28396]
[1744576711886,0.7717,1592.0,1591.5,6.2832]
[1744576712111,57.91280295,1592.3,1591.4,0.1373612]
[1744576712414,58.68450295,1592.3,1591.7,6.28238]
[1744576712595,59.16093833,1592.3,1591.5,6.4204312]
[1744576712795,5.91609383,1592.2,1591.1,6.28493]
[1744576712997,5.91609383,1592.2,1590.8,0.7582]
[1744576713249,5.91609383,1592.2,1591.2,0.1373612]
[1744576713250,6.28242,1591.8,1591.2,0.1373612]
[1744576713396,0.07855745,1591.7,1591.3,6.28379]
[1744576713624,0.07855745,1591.7,1591.3,0.12652787]
[1744576713780,0.07855745,1591.7,1591.0,6.28497]
[1744576713781,6.28317,1591.6,1591.0,6.28497]
[1744576713981,0.07856099,1591.5,1591.2,6.28427]
[1744576714207,0.07856099,1591.5,1591.2,6.28422]
[1744576714406,9.28287,1591.7,1591.3,0.12652787]
[1744576714612,0.07855716,1591.6,1591.1,6.28474]
[1744576714784,0.07855716,1591.6,1591.1,12.56952]
[1744576715112,0.8029,1592.3,1591.4,6.28377]
[1744576715274,0.07853058,1592.1,1591.9,6.28156]
[1744576715479,0.07852395,1592.2,1592.1,6.28101]
[1744576715897,4.09180295,1592.3,1592.2,6.28061]
[1744576717515,0.07850827,1592.6,1592.4,6.27947]
[1744576717685,0.07849722,1592.6,1592.3,6.28002]
[1744576717883,6.35675734,1592.8,1592.3,6.27996]
[1744576718085,0.63567573,1592.7,1592.4,6.27977]
[1744576718393,0.07849913,1592.6,1592.4,6.27977]
[1744576718595,0.07849913,1592.6,1592.0,6.28134]
[1744576718596,6.35756913,1592.6,1592.0,6.28134]
[1744576718803,0.7798,1592.4,1591.8,6.28201]
[1744576719110,0.7798,1592.4,1591.3,7.11271]
[1744576719111,6.28079,1592.2,1591.7,6.28228]
[1744576719283,0.07853019,1592.1,1591.6,6.28297]
[1744576719483,0.07853019,1592.1,1591.6,6.2827]
[1744576719715,0.07853019,1592.1,1591.8,6.28196]
[1744576720111,0.7798,1591.9,1590.9,0.8288]
[1744576720313,6.28281,1591.7,1591.2,6.28436]
[1744576720513,0.07855755,1591.6,1591.2,6.28436]
[1744576720815,0.07855756,1591.9,1591.3,0.06284604]
[1744576721020,0.07852662,1592.0,1591.8,6.28199]
[1744576721178,0.07852562,1592.2,1591.8,6.28199]
[1744576721524,6.28064,1592.2,1591.8,6.28188]
[1744576721680,6.28064,1592.2,1591.4,0.8288]
[1744576721681,0.07852475,1592.1,1591.4,0.8288]
[1744576721878,6.28166,1592.0,1591.4,6.28375]
[1744576722115,0.85834119,1591.9,1591.7,6.28232]
[1744576722284,0.07854119,1591.9,1591.5,6.28302]
[1744576722609,0.07854119,1591.9,1591.5,12.56617]
[1744576722816,6.99660731,1591.9,1591.4,6.28362]
[1744576722995,6.36058119,1591.9,1591.4,6.28361]
[1744576723181,12.64265119,1591.9,1591.4,6.28359]
[1744576723386,6.28224,1591.8,1591.4,6.28359]
[1744576723587,0.0785454,1591.7,1591.6,6.28298]
[1744576723794,0.07853899,1591.9,1591.3,6.28417]
[1744576723979,0.07853899,1591.9,1591.6,6.28277]
[1744576724183,0.07853899,1591.9,1591.7,6.28241]
[1744576724513,6.28219,1591.8,1591.3,6.28412]
[1744576724713,6.36118292,1591.7,1591.2,6.2844]
[1744576724924,0.07854292,1591.7,1591.3,6.28403]
[1744576725086,6.36116292,1591.7,1591.3,12.56796]
[1744576725292,7.70517121,1591.7,1591.3,12.56796]
[1744576725484,1.42255121,1591.7,1591.4,6.28353]
[1744576726384,1.42255121,1591.7,1591.4,12.56715]
[1744576726584,0.07854292,1591.7,1591.4,6.28353]
[1744576727885,0.07854576,1591.8,1591.6,6.28298]
[1744576728091,6.35994433,1592.0,1591.7,6.28259]
[1744576728418,6.35994433,1592.0,1591.9,6.2818]
[1744576728419,0.07853433,1592.0,1591.9,6.2818]
[1744576728782,0.07853433,1592.0,1591.7,6.28255]
[1744576728985,6.22349393,1592.0,1591.4,6.28364]
[1744576729215,6.28245,1591.8,1591.4,6.28364]
[1744576729533,0.0785453,1591.7,1591.4,12.5672]
[1744576729695,0.0785453,1591.7,1591.5,6.28313]
[1744576729896,0.07854364,1591.8,1591.5,6.28335]
[1744576730100,1.014098,1591.8,1591.5,6.28324]
[1744576730302,0.07854364,1591.8,1591.6,6.28285]
[1744576730599,0.07853726,1591.9,1591.7,6.28259]
[1744576730816,6.17,1592.7,1592.3,6.28022]
[1744576730817,0.7964,1592.4,1592.3,6.28022]
[1744576731128,0.07852859,1592.5,1592.4,6.27982]
[1744576731329,9.35550295,1592.6,1591.4,6.28377]
[1744576731537,12.56107,1592.3,1591.9,6.28176]
[1744576731835,6.35920315,1592.2,1591.9,6.28176]
[1744576732060,6.28141,1592.0,1591.5,6.2832]
[1744576732359,0.07853635,1591.9,1591.7,6.28239]
[1744576732539,0.07853424,1592.0,1591.7,6.28239]
[1744576732742,0.07853424,1592.0,1591.3,7.1164]
[1744576732920,0.07853424,1592.0,1591.7,6.28227]
[1744576733120,6.35996424,1592.0,1591.6,6.28296]
[1744576733454,6.35996424,1592.0,1591.6,6.28282]
[1744576733864,6.28766,1590.5,1590.1,6.30883]
[1744576734065,0.07861222,1590.4,1590.1,0.02]
[1744576734271,0.07860222,1590.4,1590.1,6.30888]
[1744576734560,6.36632222,1590.4,1590.1,0.02]
[1744576734943,0.7964,1590.1,1589.1,0.02]
[1744576735150,9.77864957,1590.0,1589.6,6.2907]
[1744576735347,9.77864957,1590.0,1589.1,0.02]
[1744576735348,12.57999,1589.9,1589.4,6.2915]
[1744576735547,0.07863505,1589.8,1589.7,6.29049]
[1744576735721,0.07862664,1590.3,1589.7,1.258124]
[1744576736227,0.07862664,1590.3,1589.4,0.8323]
[1744576736228,0.07862664,1590.3,1589.9,6.28947]
[1744576736423,0.07862664,1590.3,1590.0,6.28893]
[1744576736719,0.07862664,1590.3,1589.9,6.2897]
[1744576736954,0.0786198,1590.4,1590.2,6.28851]
[1744576737132,0.07859742,1590.6,1590.3,6.28812]
[1744576737322,0.07859745,1590.7,1590.5,6.28733]
[1744576737528,4.80438342,1590.7,1589.5,0.8323]
[1744576737731,0.7964,1590.4,1589.8,6.28984]
[1744576738052,7.08688,1589.8,1589.1,6.31275]
[1744576738229,0.07864205,1590.2,1589.6,0.8323]
[1744576738427,0.07861272,1590.5,1589.6,0.8323]
[1744576738644,0.07861272,1590.5,1590.2,6.28829]
[1744576739154,0.07861272,1590.5,1590.3,6.28795]
[1744576739369,6.28805,1590.4,1589.9,6.28938]
[1744576739574,6.28871,1590.2,1589.7,6.29044]
[1744576739860,3.55,1590.0,1589.1,0.02]
[1744576740061,12.58169,1589.7,1589.2,6.2923]
[1744576740266,12.66094278,1589.6,1589.1,6.31283]
[1744576740426,10.09365278,1589.6,1589.1,0.02]
[1744576740625,6.29247,1589.2,1589.1,0.02]
[1744576740834,0.07866794,1589.2,1589.1,0.02]
[1744576741027,0.8142,1590.0,1589.3,6.29207]
[1744576741227,0.07864329,1589.9,1589.1,0.02]
[1744576741565,0.07864329,1589.9,1589.2,7.1184]
[1744576741742,0.07864329,1589.9,1589.3,6.29178]
[1744576741743,6.29013,1589.8,1589.3,6.29178]
[1744576741943,10.91084325,1590.0,1589.7,6.29024]
[1744576742143,3.628805,1590.3,1589.9,6.2897]
[1744576742144,0.07863214,1590.1,1589.9,6.2897]
[1744576742458,0.07863214,1590.1,1589.2,0.826]
[1744576742459,0.8142,1590.6,1590.0,6.2893]
[1744576742660,0.07860642,1590.5,1590.3,6.28783]
[1744576742962,0.8142,1590.9,1590.5,6.28712]
[1744576743149,4.09180295,1591.1,1590.5,0.628712]
[1744576743352,4.09180295,1591.1,1591.0,6.28535]
[1744576743649,4.09180295,1591.1,1590.9,6.28564]
[1744576743951,6.28536,1591.0,1590.6,6.28684]
[1744576744147,4.09180295,1591.1,1590.7,6.28615]
[1744576744346,4.09180295,1591.1,1590.2,6.28827]
[1744576744347,6.28655,1590.7,1590.2,6.28822]
[1744576744527,0.8279,1591.1,1590.7,6.28634]
[1744576744733,0.8279,1591.1,1590.3,0.628822]
[1744576744734,0.8279,1591.1,1590.8,6.28588]
[1744576745042,0.07857477,1591.3,1590.9,6.28548]
[1744576745237,0.07857477,1591.3,1590.6,0.752]
[1744576745474,0.07857477,1591.3,1591.1,6.28479]
[1744576745680,0.90645955,1591.4,1591.1,6.28493]
[1744576745861,8.91119251,1591.4,1591.0,6.28533]
[1744576746035,0.07855955,1591.4,1591.2,6.28433]
[1744576746228,0.07855276,1591.5,1591.2,6.28433]
[1744576747341,0.8279,1591.7,1591.4,6.28377]
[1744576747536,0.07854128,1591.8,1591.3,7.03615]
[1744576747772,0.07854137,1592.0,1591.6,6.2828]
[1744576747974,6.28237,1591.8,1591.4,6.28361]
[1744576748174,0.07854134,1591.7,1591.5,6.28334]
[1744576748373,0.07854134,1591.8,1591.5,6.28334]
[1744576748579,6.28196,1591.9,1591.7,6.28238]
[1744576748580,0.07854133,1591.9,1591.7,6.28238]
[1744576748784,7.10852,1592.2,1591.8,6.28215]
[1744576748785,0.07854133,1592.0,1591.8,6.28215]
[1744576748982,0.07852603,1592.1,1591.6,6.28264]
[1744576749147,0.07852603,1592.1,1592.0,6.2814]
[1744576749353,0.07851864,1592.2,1591.9,6.28148]
[1744576749553,0.07851864,1592.2,1591.9,12.56308]
[1744576749948,0.07851864,1592.2,1592.0,6.2814]
[1744576750492,0.07851319,1592.3,1591.3,7.03599]
[1744576750648,0.4975448,1592.3,1591.4,6.987199]
[1744576750836,6.7780648,1592.3,1591.8,6.28183]
[1744576751172,4.11180295,1592.4,1592.2,6.28061]
[1744576751463,4.19031043,1592.4,1592.3,6.28022]
[1744576751665,4.11180295,1592.4,1592.3,6.28022]
[1744576752237,0.02,1592.4,1592.3,6.28022]
[1744576753273,7.77442561,1593.1,1592.8,6.27825]
[1744576753581,5.61e-06,1593.1,1593.0,6.27746]
[1744576753984,7.74e-06,1593.5,1593.2,7.03182]
[1744576754138,7.74e-06,1593.5,1593.4,6.27588]
[1744576754481,9.07e-06,1593.7,1593.6,6.2751]
[1744576755561,5.77005899,1593.7,1593.6,6.2751]
[1744576759861,0.0763178,1594.1,1593.9,6.2736]
[1744576760057,10.4163178,1594.2,1594.0,6.27351]
[1744576760286,10.34,1594.2,1594.1,6.27313]
[1744576761166,10.34,1594.2,1593.4,0.7553]
[1744576761167,10.4163178,1594.2,1593.4,0.7553]
[1744576761370,6.27328,1594.1,1593.6,6.27492]
[1744576761583,0.7036458,1594.0,1593.6,12.54988]
[1744576761785,0.7036458,1594.0,1593.6,6.27492]
[1744576762087,6.9772358,1594.0,1593.6,6.27492]
[1744576762289,0.7036458,1594.0,1593.6,6.27492]
[1744576762490,1.4865458,1594.0,1593.6,6.27489]
[1744576762879,7.7600758,1594.0,1593.1,7.10481]
[1744576763083,6.27464,1593.8,1593.2,6.27667]
[1744576763284,6.27464,1593.8,1592.8,6.27823]
[1744576763285,0.0763178,1593.7,1593.3,6.27598]
[1744576763592,7.04996758,1593.9,1593.7,6.27466]
[1744576763593,0.77600758,1593.9,1593.7,6.27466]
[1744576763896,0.8592178,1594.0,1593.9,6.27391]
[1744576764096,0.8592178,1594.0,1593.8,6.27416]
[1744576764296,6.27117,1594.6,1593.8,0.8214]
[1744576764504,6.27117,1594.6,1594.1,6.27289]
[1744576764797,6.27117,1594.6,1594.1,12.54587]
[1744576764996,6.27117,1594.6,1594.1,6.27289]
[1744576765169,6.27175,1594.5,1594.1,6.27289]
[1744576765370,6.921185,1594.4,1593.9,6.27372]
[1744576765581,6.27273,1594.2,1593.0,7.09886]
[1744576765833,6.27508,1593.7,1592.8,6.27825]
[1744576766099,6.27512,1593.6,1593.1,6.27694]
[1744576766264,3.7693,1593.8,1593.1,12.55381]
[1744576766471,0.37693,1593.7,1592.7,7.09975]
[1744576766668,6.6518,1593.7,1593.2,6.27638]
[1744576766867,0.37693,1593.7,1593.3,6.27609]
[1744576767199,6.65163,1593.7,1593.3,6.27609]
[1744576767498,6.65169,1593.7,1593.1,6.27691]
[1744576767674,6.65169,1593.7,1593.3,6.2761]
[1744576767875,0.37693,1593.7,1593.4,6.27587]
[1744576768081,0.7693,1593.8,1593.4,12.55162]
[1744576768281,6.27473,1593.7,1593.2,6.27629]
[1744576768603,6.27593,1593.4,1593.0,6.27726]
[1744576768800,6.27549,1593.5,1593.0,6.27723]
[1744576769097,6.2753,1593.6,1593.1,6.27701]
[1744576769400,6.2759,1593.4,1593.0,6.27746]
[1744576769621,6.27532,1593.6,1593.0,12.5547]
[1744576769926,6.27604,1593.4,1593.0,6.27729]
[1744576770097,1.698425,1593.6,1592.9,6.27781]
[1744576770296,6.27592,1593.4,1592.9,12.5555]
[1744576770497,6.27635,1593.3,1592.9,6.27769]
[1744576770722,1.698425,1593.6,1592.9,6.27781]
[1744576770918,1.698425,1593.6,1592.9,6.2777]
[1744576771223,1.698425,1593.6,1592.9,6.27762]